Workbook

Sheet 學生清單
C3: 學生姓名 | D3: 電子郵件 | E3: 住家電話 | F3: 行動電話 | G3: 出生日期 | H3: 緊急連絡人 | I3: 緊急連絡電話 | J3: 醫師 | K3: 醫師電話
B4: =Students[[#This Row],[學生姓名]] -> 陳丹尼 | C4: 陳丹尼 | D4: david@example.com | E4: 1235550121 | F4: 1235550126 | G4: 1993-01-01 | H4: 陳珍菲 | I4: 1235550130 | J4: 劉史分 | K4: 1235550134
B5: =Students[[#This Row],[學生姓名]] -> 謝明揚 | C5: 謝明揚 | D5: shane@example.com | E5: 1235550122 | F5: 1235550127 | G5: 1992-01-01 | H5: 謝柏納 | I5: 1235550131 | J5: 李亞力 | K5: 1235550135
B6: =Students[[#This Row],[學生姓名]] -> 徐彼得 | C6: 徐彼得 | D6: bharat@example.com | E6: 1235550124 | F6: 1235550128 | G6: 1991-01-01 | H6: 徐馬汀 | I6: 1235550132 | J6: 余約翰 | K6: 1235550136
B7: =Students[[#This Row],[學生姓名]] -> 方名揚 | C7: 方名揚 | D7: richard@example.com | E7: 1235550125 | F7: 1235550129 | G7: 1992-01-01 | H7: 方甦瓊 | I7: 1235550133 | J7: 卓馬汀 | K7: 1235550137

Sheet 班級名冊
D2: 圖形設計學院
C3: 課程 | D3: 平面藝術基礎課程 | E3: 開始日期 | F3: 2011-06-06
C4: 講師 | D4: 方國明 | E4: 結束日期 | F4: 2011-08-26
C5: 註冊學生 | D5: =COUNTA(StudentRoster[學生姓名]) -> 4
C7: 學生姓名 | D7: 電子郵件 | E7: 住家電話 | F7: 行動電話
C8: 陳丹尼 | D8: =IFERROR(VLOOKUP(StudentRoster[[#This Row],[學生姓名]],Students[],3,FALSE),"") -> david@example.com | E8: =IFERROR(VLOOKUP(StudentRoster[[#This Row],[學生姓名]],Students[],4,FALSE),"") -> 1235550121 | F8: =IFERROR(VLOOKUP(StudentRoster[[#This Row],[學生姓名]],Students[],5,FALSE),"") -> 1235550126
C9: 謝明揚 | D9: =IFERROR(VLOOKUP(StudentRoster[[#This Row],[學生姓名]],Students[],3,FALSE),"") -> shane@example.com | E9: =IFERROR(VLOOKUP(StudentRoster[[#This Row],[學生姓名]],Students[],4,FALSE),"") -> 1235550122 | F9: =IFERROR(VLOOKUP(StudentRoster[[#This Row],[學生姓名]],Students[],5,FALSE),"") -> 1235550127
C10: 徐彼得 | D10: =IFERROR(VLOOKUP(StudentRoster[[#This Row],[學生姓名]],Students[],3,FALSE),"") -> bharat@example.com | E10: =IFERROR(VLOOKUP(StudentRoster[[#This Row],[學生姓名]],Students[],4,FALSE),"") -> 1235550124 | F10: =IFERROR(VLOOKUP(StudentRoster[[#This Row],[學生姓名]],Students[],5,FALSE),"") -> 1235550128
C11: 方名揚 | D11: =IFERROR(VLOOKUP(StudentRoster[[#This Row],[學生姓名]],Students[],3,FALSE),"") -> richard@example.com | E11: =IFERROR(VLOOKUP(StudentRoster[[#This Row],[學生姓名]],Students[],4,FALSE),"") -> 1235550125 | F11: =IFERROR(VLOOKUP(StudentRoster[[#This Row],[學生姓名]],Students[],5,FALSE),"") -> 1235550129

Sheet 學生詳細資料
C4: 學生姓名 | D4: 陳丹尼
C5: 電子郵件 | D5: =IFERROR(VLOOKUP(StudentName,Students[],3,FALSE),"") -> david@example.com
C6: 住家電話 | D6: =IFERROR(VLOOKUP(StudentName,Students[],4,FALSE),"") -> 1235550121
C7: 行動電話 | D7: =IFERROR(VLOOKUP(StudentName,Students[],5,FALSE),"") -> 1235550126
C8: 出生日期 | D8: =IFERROR(VLOOKUP(StudentName,Students[],6,FALSE),"") -> 1993-01-01
C9: 緊急連絡人 | D9: =IFERROR(VLOOKUP(StudentName,Students[],7,FALSE),"") -> 陳珍菲
C10: 緊急連絡電話 | D10: =IFERROR(VLOOKUP(StudentName,Students[],8,FALSE),"") -> 1235550130
C11: 醫師 | D11: =IFERROR(VLOOKUP(StudentName,Students[],9,FALSE),"") -> 劉史分
C12: 醫師電話 | D12: =IFERROR(VLOOKUP(StudentName,Students[],10,FALSE),"") -> 1235550134
